[Event "African Games-chT 2019"]
[Site "Casablanca"]
[Date "2019.08.25"]
[Round "7.3"]
[White "Wafa, Shrook"]
[Black "Francis, Onkemetse"]
[Result "1-0"]
[ECO "C70"]
[WhiteElo "2183"]
[BlackElo "1792"]
[Annotator "ChessBase"]
[PlyCount "159"]
[EventDate "2019.08.24"]
[EventType "team-tourn"]
[EventCountry "MAR"]
[SourceTitle "playchess.com"]
[Source "ChessBase"]
[SourceQuality "1"]
[WhiteTeam "Egypt"]
[BlackTeam "Botswana"]
[WhiteTeamCountry "EGY"]
[BlackTeamCountry "BOT"]
[TimeControl "900+10"]

1. e4 {[%emt 0:00:00]} e5 {[%emt 0:00:00]} 2. Nf3 {[%emt 0:00:00]} Nc6 {[%emt 0:00:00]} 3. Bb5 {[%emt 0:00:01]} a6 {[%emt 0:00:00]} 4. Ba4 {[%emt 0:00:02]} Bc5 {[%emt 0:00:17]} 5. O-O {[%emt 0:00:11]} b5 {[%emt 0:00:26]} 6. Bb3 {[%emt 0:00:04]} Nf6 {[%emt 0:00:02]} 7. c3 {[%emt 0:00:17]} d6 {[%emt 0:01:14]} 8. d4 {[%emt 0:00:06]} exd4 {[%emt 0:00:12]} 9. cxd4 {[%emt 0:00:12]} Ba7 {[%emt 0:00:02]} 10. h3 {[%emt 0:00:43]} h6 {[%emt 0:00:08]} 11. Nc3 {[%emt 0:00:39]} O-O {[%emt 0:00:05]} 12. Bf4 {[%emt 0:01:20]} Ne7 {[%emt 0:01:07]} 13. Re1 {[%emt 0:01:03]} Ng6 {[%emt 0:00:11]} 14. Bh2 {[%emt 0:00:24]} Bb7 {[%emt 0:02:19]} 15. e5 {[%emt 0:00:47]} dxe5 {[%emt 0:00:21]} 16. Nxe5 {[%emt 0:00:38]} Nxe5 {[%emt 0:00:40]} 17. dxe5 {[%emt 0:00:15]} Nh7 {[%emt 0:01:28]} 18. Qg4 {[%emt 0:00:48]} Qd2 {[%emt 0:02:10]} 19. Re2 {[%emt 0:01:02]} Qg5 {[%emt 0:00:02]} 20. e6 {[%emt 0:00:17]} fxe6 {[%emt 0:00:34]} 21. Bxe6+ {[%emt 0:00:13]} Kh8 {[%emt 0:00:02]} 22. Bxc7 {[%emt 0:00:59]} Rfe8 {[%emt 0:02:19]} 23. Qxg5 {[%emt 0:00:46]} Nxg5 {[%emt 0:00:03]} 24. Bg4 {[%emt 0:01:27]} Rxe2 {[%emt 0:00:05]} 25. Bxe2 {[%emt 0:01:15]} Rf8 {[%emt 0:00:17]} 26. Rf1 {[%emt 0:00:36]} Ne6 {[%emt 0:00:02]} 27. Bd6 {[%emt 0:01:09]} Rd8 {[%emt 0:01:04]} 28. Rd1 {[%emt 0:00:10]} Nd4 {[%emt 0:00:12]} 29. Rxd4 {[%emt 0:01:19]} Bxd4 {[%emt 0:00:03]} 30. Bf4 {[%emt 0:00:51]} Rc8 {[%emt 0:00:37]} 31. Nd1 {[%emt 0:00:57]} Rc2 {[%emt 0:00:14]} 32. Bd3 {[%emt 0:00:10]} Rc8 {[%emt 0:00:32]} 33. Kf1 {[%emt 0:00:17]} Rf8 {[%emt 0:00:27]} 34. Bg3 {[%emt 0:00:17]} Bd5 {[%emt 0:00:17]} 35. b3 {[%emt 0:00:14]} Be6 {[%emt 0:00:07]} 36. Be4 {[%emt 0:00:22]} Bf5 {[%emt 0:00:33]} 37. Bb7 {[%emt 0:00:11]} Bc8 {[%emt 0:00:04]} 38. Be4 {[%emt 0:00:03]} Re8 {[%emt 0:00:42]} 39. f3 {[%emt 0:00:10]} Re7 {[%emt 0:00:26]} 40. Nf2 {[%emt 0:00:09]} a5 {[%emt 0:00:44]} 41. Nd3 {[%emt 0:00:05]} Bb7 {[%emt 0:00:50]} 42. Bf5 {[%emt 0:00:34]} Rf7 {[%emt 0:00:10]} 43. Bg4 {[%emt 0:00:13]} g6 {[%emt 0:00:08]} 44. Nf4 {[%emt 0:00:09]} g5 {[%emt 0:00:35]} 45. Ne6 {[%emt 0:00:16]} Bb2 {[%emt 0:00:06]} 46. Nd8 {[%emt 0:00:16]} Re7 {[%emt 0:00:12]} 47. Bd6 {[%emt 0:00:08]} Re3 {[%emt 0:00:07]} 48. Nxb7 {[%emt 0:00:06]} Rd3 {[%emt 0:00:09]} 49. Bg3 {[%emt 0:00:06]} Rd1+ {[%emt 0:00:03]} 50. Ke2 {[%emt 0:00:03]} Ra1 {[%emt 0:00:11]} 51. Nd6 {[%emt 0:00:05]} Rxa2 {[%emt 0:00:05]} 52. Kd3 {[%emt 0:00:05]} Bg7 {[%emt 0:00:08]} 53. Nxb5 {[%emt 0:00:04]} Rxg2 {[%emt 0:00:04]} 54. Bc7 {[%emt 0:00:03]} Ra2 {[%emt 0:00:23]} 55. Nc3 {[%emt 0:00:08]} Ra3 {[%emt 0:00:07]} 56. Be6 {[%emt 0:00:04]} Bf6 {[%emt 0:00:23]} 57. Na4 {[%emt 0:00:06]} Kg7 {[%emt 0:00:16]} 58. Bxa5 {[%emt 0:00:05]} Ra1 {[%emt 0:00:01]} 59. Bc7 {[%emt 0:00:28]} Rd1+ {[%emt 0:00:11]} 60. Ke2 {[%emt 0:00:21]} Ra1 {[%emt 0:00:08]} 61. Nb6 {[%emt 0:00:13]} Ra2+ {[%emt 0:00:07]} 62. Ke3 {[%emt 0:00:08]} Ra6 {[%emt 0:00:02]} 63. Bc4 {[%emt 0:00:07]} Ra7 {[%emt 0:00:05]} 64. Nd5 {[%emt 0:00:01]} Bb2 {[%emt 0:00:13]} 65. Ke4 {[%emt 0:00:08]} Ra8 {[%emt 0:00:08]} 66. b4 {[%emt 0:00:26]} Re8+ {[%emt 0:00:09]} 67. Kd3 {[%emt 0:00:07]} Be5 {[%emt 0:00:18]} 68. Bxe5+ {[%emt 0:00:06]} Rxe5 {[%emt 0:00:01]} 69. b5 {[%emt 0:00:03]} Kf8 {[%emt 0:00:07]} 70. b6 {[%emt 0:00:03]} Re8 {[%emt 0:00:11]} 71. b7 {[%emt 0:00:06]} Rb8 {[%emt 0:00:06]} 72. Ba6 {[%emt 0:00:02]} Ke8 {[%emt 0:00:06]} 73. Ke4 {[%emt 0:00:06]} Kd7 {[%emt 0:00:06]} 74. Nb4 {[%emt 0:00:14]} Kc7 {[%emt 0:00:06]} 75. Nd5+ {[%emt 0:00:23]} Kc6 {[%emt 0:00:04]} 76. Nf6 {[%emt 0:00:07]} Rf8 {[%emt 0:00:17]} 77. Ke5 {[%emt 0:00:09]} Rh8 {[%emt 0:00:17]} 78. Kf5 {[%emt 0:00:14]} Kb6 {[%emt 0:00:01]} 79. Nd7+ {[%emt 0:00:08]} Kxa6 {[%emt 0:00:10]} 80. b8=Q {[%emt 0:00:02]} 1-0

[Event "African Games-chT 2019"]
[Site "Casablanca"]
[Date "2019.08.25"]
[Round "7.4"]
[White "Gabatshwarwe Refilwe"]
[Black "Wafa, Shahenda"]
[Result "0-1"]
[ECO "A80"]
[WhiteElo "1649"]
[BlackElo "2139"]
[Annotator "ChessBase"]
[PlyCount "108"]
[EventDate "2019.08.24"]
[EventType "team-tourn"]
[EventCountry "MAR"]
[SourceTitle "playchess.com"]
[Source "ChessBase"]
[SourceQuality "1"]
[WhiteTeam "Botswana"]
[BlackTeam "Egypt"]
[WhiteTeamCountry "BOT"]
[BlackTeamCountry "EGY"]
[TimeControl "900+10"]

1. d4 {[%emt 0:00:00]} f5 {[%emt 0:00:00]} 2. Nf3 {[%emt 0:00:00]} Nf6 {[%emt 0:00:00]} 3. Bf4 {[%emt 0:00:01]} g6 {[%emt 0:00:10]} 4. h3 {[%emt 0:00:06]} Bg7 {[%emt 0:00:03]} 5. e3 {[%emt 0:00:02]} d6 {[%emt 0:00:03]} 6. c3 {[%emt 0:00:15]} c6 {[%emt 0:02:48]} 7. Qb3 {[%emt 0:00:23]} Qb6 {[%emt 0:00:08]} 8. Nbd2 {[%emt 0:00:38]} Qxb3 {[%emt 0:00:32]} 9. axb3 {[%emt 0:00:17]} Nd5 {[%emt 0:02:38]} 10. Bh2 {[%emt 0:00:29]} Nd7 {[%emt 0:00:22]} 11. Be2 {[%emt 0:01:29]} O-O {[%emt 0:00:09]} 12. O-O {[%emt 0:00:13]} N7f6 {[%emt 0:01:06]} 13. Rfe1 {[%emt 0:03:26]} Kh8 {[%emt 0:00:56]} 14. Bd3 {[%emt 0:01:11]} Bd7 {[%emt 0:00:53]} 15. Bc2 {[%emt 0:01:54]} a6 {[%emt 0:00:19]} 16. Rad1 {[%emt 0:00:53]} Rae8 {[%emt 0:00:53]} 17. Ra1 {[%emt 0:01:25]} Nh5 {[%emt 0:00:44]} 18. Nc4 {[%emt 0:01:05]} Nhf6 {[%emt 0:01:07]} 19. Ncd2 {[%emt 0:00:03]} Rc8 {[%emt 0:00:25]} 20. e4 {[%emt 0:01:06]} fxe4 {[%emt 0:00:12]} 21. Nxe4 {[%emt 0:00:02]} Nxe4 {[%emt 0:00:37]} 22. Bxe4 {[%emt 0:00:01]} Nf4 {[%emt 0:00:31]} 23. Bc2 {[%emt 0:02:05]} Rce8 {[%emt 0:00:44]} 24. Ng5 {[%emt 0:01:02]} e5 {[%emt 0:00:26]} 25. dxe5 {[%emt 0:00:17]} Bxe5 {[%emt 0:00:21]} 26. Nf3 {[%emt 0:00:30]} Nxh3+ {[%emt 0:00:20]} 27. gxh3 {[%emt 0:00:11]} Rxf3 {[%emt 0:00:09]} 28. Bxe5+ {[%emt 0:00:07]} dxe5 {[%emt 0:00:04]} 29. Be4 {[%emt 0:00:16]} Rxh3 {[%emt 0:00:05]} 30. Bg2 {[%emt 0:00:11]} Rh4 {[%emt 0:00:04]} 31. Re3 {[%emt 0:00:06]} Bf5 {[%emt 0:00:25]} 32. Rae1 {[%emt 0:00:05]} e4 {[%emt 0:00:24]} 33. f3 {[%emt 0:00:19]} Bh3 {[%emt 0:00:05]} 34. Bxh3 {[%emt 0:00:05]} Rxh3 {[%emt 0:00:02]} 35. fxe4 {[%emt 0:00:02]} Rxe3 {[%emt 0:00:03]} 36. Rxe3 {[%emt 0:00:00]} Kg7 {[%emt 0:00:06]} 37. Kg2 {[%emt 0:00:01]} Kf6 {[%emt 0:00:06]} 38. Kg3 {[%emt 0:00:00]} Ke5 {[%emt 0:00:06]} 39. Re1 {[%emt 0:00:43]} Rf8 {[%emt 0:00:09]} 40. Rh1 {[%emt 0:00:13]} Rf7 {[%emt 0:00:02]} 41. Re1 {[%emt 0:00:15]} h5 {[%emt 0:00:02]} 42. Kh4 {[%emt 0:00:15]} Rf4+ {[%emt 0:00:05]} 43. Kg5 {[%emt 0:00:07]} Rg4+ {[%emt 0:00:03]} 44. Kh6 {[%emt 0:00:02]} Rxe4 {[%emt 0:00:05]} 45. Rd1 {[%emt 0:00:27]} Rg4 {[%emt 0:00:17]} 46. Rd7 {[%emt 0:00:09]} h4 {[%emt 0:00:12]} 47. Rd3 {[%emt 0:00:12]} Rg3 48. Rd2 h3 {[%emt 0:00:17]} 49. Rh2 {[%emt 0:00:14]} g5 {[%emt 0:00:01]} 50. Kh5 {[%emt 0:00:02]} g4 {[%emt 0:00:03]} 51. Kh4 {[%emt 0:00:24]} Rg2 {[%emt 0:00:01]} 52. Rh1 {[%emt 0:00:01]} h2 {[%emt 0:00:03]} 53. Re1+ {[%emt 0:00:15]} Kd6 {[%emt 0:00:01]} 54. Rh1 {[%emt 0:00:09]} g3 {[%emt 0:00:02]} 0-1

[Event "African Games-chT 2019"]
[Site "Casablanca"]
[Date "2019.08.25"]
[Round "7.5"]
[White "Hamdouchi, Hicham"]
[Black "Bellahcene, Bilel"]
[Result "0-1"]
[ECO "C55"]
[WhiteElo "2562"]
[BlackElo "2550"]
[Annotator "ChessBase"]
[PlyCount "48"]
[EventDate "2019.08.24"]
[EventType "team-tourn"]
[EventCountry "MAR"]
[SourceTitle "playchess.com"]
[Source "ChessBase"]
[SourceQuality "1"]
[WhiteTeam "Morocco"]
[BlackTeam "Algeria"]
[WhiteTeamCountry "MAR"]
[BlackTeamCountry "ALG"]
[TimeControl "900+10"]

1. e4 {[%emt 0:00:00]} e5 {[%emt 0:00:00]} 2. Nf3 {[%emt 0:00:00]} Nc6 {[%emt 0:00:00]} 3. Bc4 {[%emt 0:00:00]} Nf6 {[%emt 0:00:00]} 4. d3 {[%emt 0:00:00]} h6 {[%emt 0:00:00]} 5. Nbd2 {[%emt 0:00:26]} d6 {[%emt 0:00:00]} 6. Nf1 {[%emt 0:00:13]} g6 {[%emt 0:00:00]} 7. h3 {[%emt 0:00:14]} Bg7 {[%emt 0:00:00]} 8. Be3 {[%emt 0:00:09]} O-O {[%emt 0:00:15]} 9. Qd2 {[%emt 0:01:21]} Kh7 {[%emt 0:00:00]} 10. N1h2 {[%emt 0:00:01]} d5 {[%emt 0:00:05]} 11. exd5 {[%emt 0:00:03]} Nxd5 {[%emt 0:00:28]} 12. Bxd5 {[%emt 0:00:24]} Qxd5 {[%emt 0:00:01]} 13. Ng4 {[%emt 0:00:02]} g5 {[%emt 0:02:45]} 14. Nxh6 {[%emt 0:05:30]} Bxh6 {[%emt 0:00:09]} 15. h4 {[%emt 0:00:01]} Bg7 {[%emt 0:00:10]} 16. hxg5+ {[%emt 0:00:05]} Kg8 {[%emt 0:00:04]} 17. Rh4 {[%emt 0:00:25]} Bf5 {[%emt 0:00:15]} 18. Rc4 {[%emt 0:00:55]} Rad8 {[%emt 0:02:48]} 19. Rc5 {[%emt 0:00:56]} Qd6 {[%emt 0:00:07]} 20. O-O-O {[%emt 0:00:21]} Be6 {[%emt 0:00:07]} 21. Qe2 {[%emt 0:00:37]} b6 {[%emt 0:00:12]} 22. Rc3 {[%emt 0:00:21]} e4 {[%emt 0:00:11]} 23. Nd2 {[%emt 0:00:02]} exd3 {[%emt 0:00:38]} 24. Qh5 {[%emt 0:01:34]} Bf5 {[%emt 0:00:26]} 0-1

[Event "African Games-chT 2019"]
[Site "Casablanca"]
[Date "2019.08.25"]
[Round "7.6"]
[White "Arab, Adlane"]
[Black "Tissir, Mohamed"]
[Result "0-1"]
[ECO "A40"]
[WhiteElo "2485"]
[BlackElo "2379"]
[Annotator "ChessBase"]
[PlyCount "73"]
[EventDate "2019.08.24"]
[EventType "team-tourn"]
[EventCountry "MAR"]
[SourceTitle "playchess.com"]
[Source "ChessBase"]
[SourceQuality "1"]
[WhiteTeam "Algeria"]
[BlackTeam "Morocco"]
[WhiteTeamCountry "ALG"]
[BlackTeamCountry "MAR"]
[TimeControl "900+10"]

1. d4 {[%emt 0:00:00]} e6 {[%emt 0:00:16]} 2. c4 {[%emt 0:00:00]} c5 {[%emt 0:00:02]} 3. d5 {[%emt 0:00:00]} exd5 {[%emt 0:00:01]} 4. cxd5 {[%emt 0:00:00]} d6 {[%emt 0:00:01]} 5. Nc3 {[%emt 0:00:02]} Ne7 {[%emt 0:00:01]} 6. g3 {[%emt 0:00:12]} Ng6 {[%emt 0:00:06]} 7. Bg2 {[%emt 0:00:03]} Be7 {[%emt 0:00:01]} 8. Nf3 {[%emt 0:00:04]} O-O {[%emt 0:00:03]} 9. O-O {[%emt 0:00:04]} f5 {[%emt 0:01:56]} 10. a4 {[%emt 0:01:36]} f4 {[%emt 0:00:06]} 11. Ne4 {[%emt 0:00:37]} Na6 {[%emt 0:00:15]} 12. Bd2 {[%emt 0:00:30]} Bf5 {[%emt 0:00:25]} 13. Nc3 {[%emt 0:00:01]} Bd7 {[%emt 0:00:12]} 14. Ne1 {[%emt 0:01:27]} Nb4 {[%emt 0:00:37]} 15. Ne4 {[%emt 0:00:14]} a5 {[%emt 0:00:12]} 16. Bc3 {[%emt 0:00:16]} Qc8 {[%emt 0:00:20]} 17. Nd3 {[%emt 0:00:42]} Bh3 {[%emt 0:00:13]} 18. Bxb4 {[%emt 0:01:12]} axb4 {[%emt 0:00:03]} 19. Rc1 {[%emt 0:00:24]} Bxg2 {[%emt 0:00:27]} 20. Kxg2 {[%emt 0:00:01]} Qf5 {[%emt 0:00:01]} 21. f3 {[%emt 0:00:15]} fxg3 {[%emt 0:01:16]} 22. hxg3 {[%emt 0:00:05]} Qxd5 {[%emt 0:00:02]} 23. b3 {[%emt 0:01:09]} b6 {[%emt 0:00:38]} 24. Ndf2 {[%emt 0:00:11]} Qe6 {[%emt 0:00:11]} 25. Nd2 {[%emt 0:00:32]} d5 {[%emt 0:00:05]} 26. e4 {[%emt 0:00:13]} dxe4 {[%emt 0:00:03]} 27. Ndxe4 {[%emt 0:00:14]} Rad8 {[%emt 0:00:02]} 28. Qc2 {[%emt 0:00:18]} Ne5 {[%emt 0:02:03]} 29. f4 {[%emt 0:00:31]} Nc6 {[%emt 0:00:04]} 30. Rh1 {[%emt 0:00:43]} h6 {[%emt 0:00:01]} 31. Rce1 {[%emt 0:01:12]} Nd4 {[%emt 0:00:29]} 32. Qd1 {[%emt 0:00:48]} Qxb3 {[%emt 0:00:11]} 33. Qh5 {[%emt 0:00:11]} Qd5 {[%emt 0:00:55]} 34. Qg4 {[%emt 0:00:12]} Rd6 {[%emt 0:01:01]} 35. Rh5 {[%emt 0:00:23]} Qc6 {[%emt 0:00:23]} 36. Nd3 {[%emt 0:00:25]} Nc2 {[%emt 0:00:37]} 37. Ra1 0-1

[Event "African Games-chT 2019"]
[Site "Casablanca"]
[Date "2019.08.25"]
[Round "7.7"]
[White "Mayar ElIdrissi, Firdaous"]
[Black "Nassr, Lina"]
[Result "0-1"]
[ECO "B40"]
[WhiteElo "1760"]
[BlackElo "1938"]
[Annotator "NA"]
[PlyCount "48"]
[EventDate "2019.08.24"]
[EventType "team-tourn"]
[EventCountry "MAR"]
[SourceTitle "playchess.com"]
[Source "ChessBase"]
[SourceQuality "1"]
[WhiteTeam "Morocco"]
[BlackTeam "Algeria"]
[WhiteTeamCountry "MAR"]
[BlackTeamCountry "ALG"]
[TimeControl "900+10"]

1. e4 {[%emt 0:00:00]} c5 {[%emt 0:00:00]} 2. Nf3 {[%emt 0:00:00]} e6 {[%emt 0:00:00]} 3. d4 {[%emt 0:00:00]} cxd4 {[%emt 0:00:00]} 4. Nxd4 {[%emt 0:00:00]} Nf6 {[%emt 0:00:00]} 5. Bd3 {[%emt 0:00:07]} Nc6 {[%emt 0:00:02]} 6. Be3 {[%emt 0:00:07]} e5 {[%emt 0:01:17]} 7. Nb3 {[%emt 0:00:47]} d5 {[%emt 0:00:11]} 8. exd5 {[%emt 0:00:57]} Nxd5 {[%emt 0:00:11]} 9. Bd2 {[%emt 0:00:22]} Be7 {[%emt 0:00:17]} 10. O-O {[%emt 0:00:02]} O-O {[%emt 0:00:03]} 11. Nc3 {[%emt 0:00:26]} Be6 {[%emt 0:00:54]} 12. Re1 {[%emt 0:01:49]} Rc8 {[%emt 0:00:39]} 13. Ne4 {[%emt 0:00:11]} Ncb4 {[%emt 0:01:11]} 14. Bxb4 {[%emt 0:04:23]} Nxb4 {[%emt 0:00:04]} 15. Nc1 {[%emt 0:01:19]} f5 {[%emt 0:01:17]} 16. Nc3 {[%emt 0:00:29]} Qc7 {[%emt 0:02:13]} 17. a3 Nxd3 {[%emt 0:00:15]} 18. Nxd3 {[%emt 0:00:47]} e4 {[%emt 0:01:33]} 19. Qe2 {[%emt 0:02:43]} Bc4 {[%emt 0:00:49]} 20. Qe3 {[%emt 0:00:40]} Bd6 {[%emt 0:00:52]} 21. Nb4 {[%emt 0:00:30]} Bxh2+ {[%emt 0:01:07]} 22. Kh1 {[%emt 0:00:00]} Bf4 {[%emt 0:01:13]} 23. Qxa7 {[%emt 0:00:10]} Rf6 {[%emt 0:00:47]} 24. Ne2 {[%emt 0:02:57]} Bd2 {[%emt 0:02:29]} 0-1

[Event "African Games-chT 2019"]
[Site "Casablanca"]
[Date "2019.08.25"]
[Round "7.8"]
[White "Latreche, Sabrina"]
[Black "Rania, Sbai"]
[Result "1/2-1/2"]
[ECO "C54"]
[WhiteElo "2064"]
[BlackElo "1853"]
[Annotator "NA"]
[PlyCount "93"]
[EventDate "2019.08.24"]
[EventType "team-tourn"]
[EventCountry "MAR"]
[SourceTitle "playchess.com"]
[Source "ChessBase"]
[SourceQuality "1"]
[WhiteTeam "Algeria"]
[BlackTeam "Morocco"]
[WhiteTeamCountry "ALG"]
[BlackTeamCountry "MAR"]
[TimeControl "900+10"]

1. e4 {[%emt 0:00:00]} e5 {[%emt 0:00:00]} 2. Nf3 {[%emt 0:00:00]} Nc6 {[%emt 0:00:00]} 3. Bc4 {[%emt 0:00:01]} Bc5 {[%emt 0:00:00]} 4. c3 {[%emt 0:00:02]} Nf6 {[%emt 0:00:07]} 5. d4 {[%emt 0:00:21]} exd4 {[%emt 0:00:13]} 6. cxd4 {[%emt 0:00:02]} Bb4+ {[%emt 0:00:01]} 7. Bd2 {[%emt 0:00:02]} Bxd2+ {[%emt 0:01:06]} 8. Nbxd2 {[%emt 0:00:01]} d5 {[%emt 0:00:46]} 9. exd5 {[%emt 0:00:02]} Nxd5 {[%emt 0:00:02]} 10. Qb3 {[%emt 0:00:23]} Nce7 {[%emt 0:01:02]} 11. O-O {[%emt 0:00:03]} O-O {[%emt 0:00:05]} 12. Rfe1 {[%emt 0:00:01]} c6 {[%emt 0:01:08]} 13. Ne4 {[%emt 0:00:02]} Qb6 {[%emt 0:00:42]} 14. Qxb6 {[%emt 0:02:41]} axb6 {[%emt 0:00:01]} 15. Nd6 {[%emt 0:00:20]} Rd8 {[%emt 0:02:34]} 16. Nxc8 {[%emt 0:00:18]} Raxc8 {[%emt 0:00:13]} 17. Re2 {[%emt 0:01:23]} Nf5 {[%emt 0:01:51]} 18. Rae1 {[%emt 0:00:42]} g6 {[%emt 0:01:03]} 19. g3 {[%emt 0:01:19]} b5 {[%emt 0:01:49]} 20. Bd3 {[%emt 0:00:23]} Nxd4 {[%emt 0:01:38]} 21. Nxd4 {[%emt 0:00:27]} Nb4 {[%emt 0:00:01]} 22. Nxc6 {[%emt 0:01:10]} bxc6 {[%emt 0:01:11]} 23. Bb1 {[%emt 0:00:01]} Nd5 {[%emt 0:00:10]} 24. Kg2 {[%emt 0:00:39]} Kg7 {[%emt 0:00:14]} 25. a3 {[%emt 0:00:53]} Rc7 {[%emt 0:00:18]} 26. Ba2 {[%emt 0:00:51]} Rcd7 {[%emt 0:01:08]} 27. Rc1 {[%emt 0:00:34]} Ne7 {[%emt 0:00:31]} 28. Rc5 {[%emt 0:00:17]} Kf6 {[%emt 0:00:06]} 29. Rcc2 {[%emt 0:00:33]} Rd1 {[%emt 0:00:21]} 30. Bb3 {[%emt 0:00:52]} R1d6 {[%emt 0:00:01]} 31. Re4 {[%emt 0:01:41]} Nf5 {[%emt 0:00:20]} 32. Ba2 {[%emt 0:00:17]} R8d7 {[%emt 0:00:58]} 33. Rce2 {[%emt 0:01:51]} Rd2 {[%emt 0:00:19]} 34. g4 {[%emt 0:00:40]} Rxe2 {[%emt 0:00:12]} 35. Rxe2 {[%emt 0:00:01]} Nd4 {[%emt 0:00:15]} 36. Rd2 {[%emt 0:00:09]} c5 {[%emt 0:00:01]} 37. Bb1 {[%emt 0:00:13]} Re7 {[%emt 0:00:16]} 38. Bd3 {[%emt 0:00:10]} Nb3 {[%emt 0:00:24]} 39. Rc2 {[%emt 0:00:02]} c4 {[%emt 0:00:01]} 40. Bf1 {[%emt 0:00:08]} Re1 {[%emt 0:00:01]} 41. a4 {[%emt 0:00:10]} bxa4 {[%emt 0:00:11]} 42. Bxc4 {[%emt 0:00:01]} Rb1 {[%emt 0:00:24]} 43. Re2 {[%emt 0:00:24]} Rc1 {[%emt 0:00:10]} 44. Bxb3 {[%emt 0:00:09]} axb3 45. Re3 Rc4 {[%emt 0:00:10]} 46. h3 {[%emt 0:00:15]} Rb4 {[%emt 0:00:01]} 47. Kg3 1/2-1/2

[Event "African Games-chT 2019"]
[Site "Casablanca"]
[Date "2019.08.25"]
[Round "7.9"]
[White "Aderito, Pedro"]
[Black "Makoto, Rodwell"]
[Result "1/2-1/2"]
[ECO "D78"]
[WhiteElo "2301"]
[BlackElo "2373"]
[Annotator "ChessBase"]
[PlyCount "89"]
[EventDate "2019.08.24"]
[EventType "team-tourn"]
[EventCountry "MAR"]
[SourceTitle "playchess.com"]
[Source "ChessBase"]
[SourceQuality "1"]
[WhiteTeam "Angola"]
[BlackTeam "Zimbabwe"]
[WhiteTeamCountry "ANG"]
[BlackTeamCountry "ZIM"]
[TimeControl "900+10"]

1. d4 {[%emt 0:00:00]} Nf6 {[%emt 0:00:00]} 2. Nf3 g6 3. g3 {[%emt 0:00:01]} Bg7 {[%emt 0:00:00]} 4. Bg2 {[%emt 0:00:02]} d5 {[%emt 0:00:00]} 5. O-O {[%emt 0:00:09]} O-O {[%emt 0:00:00]} 6. c4 {[%emt 0:00:03]} c6 {[%emt 0:00:00]} 7. Nc3 {[%emt 0:00:06]} dxc4 {[%emt 0:00:07]} 8. Ne5 {[%emt 0:00:05]} Be6 {[%emt 0:00:15]} 9. e4 {[%emt 0:00:08]} Nbd7 {[%emt 0:00:42]} 10. Nf3 {[%emt 0:00:39]} Bg4 {[%emt 0:01:08]} 11. h3 {[%emt 0:03:23]} Bxf3 {[%emt 0:00:01]} 12. Bxf3 {[%emt 0:00:10]} e5 {[%emt 0:00:28]} 13. d5 {[%emt 0:00:49]} cxd5 {[%emt 0:00:01]} 14. exd5 {[%emt 0:00:01]} Ne8 {[%emt 0:00:36]} 15. d6 {[%emt 0:04:22]} Nc5 {[%emt 0:00:24]} 16. Be3 {[%emt 0:00:11]} Nd3 {[%emt 0:00:11]} 17. Bxb7 {[%emt 0:00:56]} Rb8 {[%emt 0:00:01]} 18. Bg2 {[%emt 0:00:13]} Nxd6 {[%emt 0:00:21]} 19. Bxa7 {[%emt 0:00:18]} Rxb2 {[%emt 0:00:04]} 20. Na4 {[%emt 0:00:51]} Rb4 {[%emt 0:01:35]} 21. a3 {[%emt 0:00:51]} Rb3 {[%emt 0:01:12]} 22. Nc5 {[%emt 0:00:05]} Nxc5 {[%emt 0:02:29]} 23. Bxc5 {[%emt 0:00:02]} Rd3 {[%emt 0:00:01]} 24. Qa4 {[%emt 0:00:31]} Qc7 {[%emt 0:00:04]} 25. Bb4 {[%emt 0:00:07]} Rc8 {[%emt 0:00:32]} 26. Rac1 {[%emt 0:00:10]} e4 {[%emt 0:00:44]} 27. Bxd6 {[%emt 0:00:19]} Qxd6 {[%emt 0:00:02]} 28. Bxe4 {[%emt 0:01:33]} Rxa3 {[%emt 0:00:25]} 29. Qd1 {[%emt 0:00:41]} Qxd1 {[%emt 0:00:16]} 30. Rfxd1 {[%emt 0:00:03]} Bb2 {[%emt 0:00:32]} 31. Rc2 {[%emt 0:00:05]} Ra1 {[%emt 0:00:20]} 32. Rxa1 {[%emt 0:00:23]} Bxa1 {[%emt 0:00:01]} 33. Ra2 {[%emt 0:00:06]} Bd4 {[%emt 0:00:15]} 34. Kf1 {[%emt 0:00:18]} f5 {[%emt 0:00:22]} 35. Ra8 {[%emt 0:00:55]} Rxa8 {[%emt 0:00:01]} 36. Bxa8 {[%emt 0:00:01]} Kg7 {[%emt 0:00:06]} 37. Bd5 {[%emt 0:00:02]} c3 {[%emt 0:00:01]} 38. Bb3 {[%emt 0:00:01]} Kf6 {[%emt 0:00:07]} 39. Ke2 {[%emt 0:00:06]} Ke5 {[%emt 0:00:07]} 40. f3 {[%emt 0:00:16]} h5 {[%emt 0:00:03]} 41. f4+ {[%emt 0:01:43]} Kf6 {[%emt 0:00:01]} 42. Kf3 {[%emt 0:00:12]} Bb6 {[%emt 0:00:09]} 43. Ke2 {[%emt 0:00:08]} Bc7 {[%emt 0:00:16]} 44. Kf3 {[%emt 0:00:06]} Bd6 {[%emt 0:00:02]} 45. g4 {[%emt 0:00:13] Ke5} 1/2-1/2